fUST/lending_fUST_20250724
["ID","MTS","AMOUNT","RATE_DAILY","PERIOD"]
[374434698,1753300239050,-500.0,0.00019775,2]
[374434699,1753300239059,-500.0,0.00019775,2]
[374434700,1753300239069,-460.0,0.00019776,2]
[374434701,1753300239078,-460.0,0.00019776,2]
[374434702,1753300239087,-460.0,0.00019776,2]
[374434703,1753300239096,-460.0,0.00019776,2]
[374434704,1753300239106,-677.89,0.00019776,2]
[374434705,1753300239115,-460.0,0.00019778,2]
[374434706,1753300239127,-7745.16054382,0.0001978,2]
[374434707,1753300239137,-151.0,0.00019838,2]
[374434708,1753300239147,-151.0,0.00019838,2]
[374434709,1753300239158,-151.0,0.00019838,2]
[374434710,1753300239169,-151.0,0.00019838,2]
[374434711,1753300239181,-151.0,0.00019838,2]
[374434712,1753300239191,-8326.83511787,0.00019838,2]
[374434713,1753300239201,-151.0,0.00019838,2]
[374434714,1753300239211,-3801.642,0.00019838,2]
[374434715,1753300239221,-151.0,0.00019838,2]
[374434716,1753300239230,-151.0,0.00019838,2]
[374434717,1753300239239,-151.0,0.00019838,2]
[374434718,1753300239249,-151.0,0.00019838,2]
[374434719,1753300239258,-151.0,0.00019838,2]
[374434720,1753300239267,-151.0,0.00019838,2]
[374434721,1753300239276,-215.0738,0.00019838,2]
[374434722,1753300239286,-151.0,0.00019838,2]
[374434723,1753300239296,-151.0,0.00019838,2]
[374434724,1753300239305,-151.0,0.00019838,2]
[374434725,1753300239315,-151.0,0.00019838,2]
[374434726,1753300239325,-151.0,0.00019838,2]
[374434727,1753300239335,-151.0,0.00019838,2]
[374434728,1753300239344,-151.0,0.00019838,2]
[374434729,1753300239354,-151.0,0.00019838,2]
[374434730,1753300239364,-151.0,0.00019838,2]
[374434731,1753300239373,-151.0,0.00019838,2]
[374434732,1753300239382,-151.0,0.00019838,2]
[374434733,1753300239392,-151.0,0.00019838,2]
[374434734,1753300239401,-151.0,0.00019838,2]
[374434735,1753300239410,-151.0,0.00019838,2]
[374434736,1753300239419,-151.0,0.00019838,2]
[374434737,1753300239429,-151.0,0.00019838,2]
[374434739,1753300239439,-151.0,0.00019838,2]
[374434740,1753300239449,-151.0,0.00019838,2]
[374434741,1753300239459,-151.0,0.00019838,2]
[374434742,1753300239468,-151.0,0.00019838,2]
[374434743,1753300239477,-151.0,0.00019838,2]
[374434744,1753300239487,-460.0,0.00019863,2]
[374434745,1753300239496,-460.0,0.00019863,2]
[374434746,1753300239505,-674.47,0.00019863,2]
[374434747,1753300239515,-460.0,0.00019863,2]
[374434748,1753300239524,-460.0,0.00019863,2]
[374434749,1753300239533,-554.92,0.00019863,2]
[374434750,1753300239543,-460.0,0.00019863,2]
[374434751,1753300239552,-460.0,0.00019863,2]
[374434752,1753300239561,-460.0,0.00019863,2]
[374434753,1753300239571,-460.0,0.00019863,2]
[374434754,1753300239580,-460.0,0.00019863,2]
[374434755,1753300239590,-460.0,0.00019863,2]
[374434756,1753300239599,-460.0,0.00019863,2]
[374434757,1753300239611,-460.0,0.00019863,2]
[374434758,1753300239620,-460.0,0.00019863,2]
[374434759,1753300239630,-460.0,0.00019863,2]
[374434760,1753300239640,-460.0,0.00019863,2]
[374434761,1753300239649,-460.0,0.00019873,2]
[374434762,1753300239659,-460.0,0.00019873,2]
[374434763,1753300239668,-460.0,0.00019873,2]
[374434764,1753300239680,-460.0,0.00019873,2]
[374434765,1753300239690,-460.0,0.00019873,2]
[374434766,1753300239699,-460.0,0.00019873,2]
[374434767,1753300239708,-292.71564757,0.00019873,2]
[374434768,1753300239717,-460.0,0.00019873,2]
[374434769,1753300239728,-460.0,0.00019873,2]
[374434770,1753300239738,-460.0,0.00019873,2]
[374434771,1753300239747,-460.0,0.00019873,2]
[374434772,1753300239756,-460.0,0.00019873,2]
[374434773,1753300239766,-323.33328266,0.00019873,2]
[374434774,1753300239775,-460.0,0.00019873,2]
[374434775,1753300239784,-460.0,0.00019873,2]
[374434776,1753300239793,-460.0,0.00019873,2]
[374434777,1753300239803,-460.0,0.00019873,2]
[374434778,1753300239812,-460.0,0.00019873,2]
[374434779,1753300239821,-460.0,0.00019873,2]
[374434780,1753300239831,-460.0,0.00019873,2]
[374434781,1753300239840,-460.0,0.00019873,2]
[374434782,1753300239849,-364.55745297,0.00019873,2]
[374434783,1753300239858,-460.0,0.00019873,2]
[374434784,1753300239867,-460.0,0.00019873,2]
[374434785,1753300239877,-460.0,0.00019873,2]
[374434786,1753300239886,-460.0,0.00019873,2]
[374434787,1753300239895,-460.0,0.00019873,2]
[374434788,1753300239904,-385.35351005,0.00019873,2]
[374434789,1753300239913,-460.0,0.00019873,2]
[374434790,1753300239922,-460.0,0.00019873,2]
[374434791,1753300239933,-460.0,0.00019873,2]
[374434792,1753300239942,-460.0,0.00019873,2]
[374434793,1753300239951,-460.0,0.00019873,2]
[374434794,1753300239961,-460.0,0.00019873,2]
[374434795,1753300239977,-460.0,0.00019873,2]
[374434796,1753300239997,-220.67,0.00019873,2]
[374434797,1753300240007,-460.0,0.00019873,2]
[374434798,1753300240016,-460.0,0.00019873,2]
[374434801,1753300240026,-472.98111678,0.00019875,2]
[374434802,1753300240035,-460.0,0.00019875,2]
[374434804,1753300240044,-460.0,0.00019875,2]
[374434806,1753300240053,-460.0,0.00019875,2]
[374434807,1753300240063,-281.05963813,0.00019875,2]
[374434808,1753300240072,-948.6,0.00019875,2]
[374434809,1753300240082,-460.0,0.00019875,2]
[374434810,1753300240091,-460.0,0.00019875,2]
[374434811,1753300240100,-757.48,0.00019875,2]
[374434812,1753300240109,-460.0,0.00019875,2]
[374434813,1753300240119,-460.0,0.00019875,2]
[374434814,1753300240132,-460.0,0.00019875,2]
[374434815,1753300240141,-460.0,0.00019876,2]
[374434816,1753300240150,-460.0,0.00019876,2]
[374434817,1753300240160,-460.0,0.00019876,2]
[374434818,1753300240170,-460.0,0.00019876,2]
[374434819,1753300240181,-460.0,0.00019876,2]
[374434820,1753300240190,-386.54041967,0.00019876,2]
[374434821,1753300240200,-530.78,0.00019876,2]
[374434822,1753300240209,-460.0,0.00019876,2]
[374434823,1753300240219,-460.0,0.00019876,2]
[374434824,1753300240228,-460.0,0.00019876,2]
[374434825,1753300240238,-460.0,0.00019877,2]
[374434826,1753300240247,-460.0,0.00019877,2]
[374434827,1753300240256,-460.0,0.00019877,2]
[374434828,1753300240265,-460.0,0.00019877,2]
[374434829,1753300240276,-460.0,0.00019877,2]
[374434830,1753300240285,-460.0,0.00019877,2]
[374434831,1753300240294,-609.1376546,0.00019877,2]
[374434832,1753300240304,-460.0,0.00019877,2]
[374434833,1753300240315,-460.0,0.00019878,2]
[374434834,1753300240324,-460.0,0.00019878,2]
[374434836,1753300240333,-460.0,0.00019878,2]
[374434838,1753300240342,-460.0,0.00019878,2]
[374434840,1753300240351,-460.0,0.00019878,2]
[374434842,1753300240361,-460.0,0.00019878,2]
[374434843,1753300240370,-460.0,0.00019878,2]
[374434846,1753300240379,-460.0,0.00019878,2]
[374434847,1753300240388,-460.0,0.00019878,2]
[374434849,1753300240397,-460.0,0.00019878,2]
[374434851,1753300240407,-460.0,0.00019878,2]
[374434853,1753300240416,-460.0,0.00019878,2]
[374434855,1753300240426,-460.0,0.00019878,2]
[374434857,1753300240436,-460.0,0.00019878,2]
[374434859,1753300240446,-460.0,0.00019878,2]
[374434861,1753300240455,-460.0,0.00019878,2]
[374434863,1753300240466,-460.0,0.00019878,2]
[374434865,1753300240475,-460.0,0.00019878,2]
[374434867,1753300240485,-460.0,0.00019878,2]
[374434869,1753300240495,-460.0,0.00019878,2]
[374434871,1753300240504,-461.21925165,0.00019878,2]
[374434873,1753300240513,-460.0,0.00019878,2]
[374434875,1753300240523,-460.0,0.00019878,2]
[374434877,1753300240533,-460.0,0.00019878,2]
[374434879,1753300240543,-460.0,0.00019878,2]
[374434881,1753300240552,-460.0,0.00019878,2]
[374434883,1753300240561,-535.96,0.00019878,2]
[374434885,1753300240570,-460.0,0.00019878,2]
[374434887,1753300240580,-460.0,0.00019878,2]
[374434889,1753300240589,-460.0,0.00019878,2]
[374434891,1753300240598,-460.0,0.00019878,2]
[374434893,1753300240607,-460.0,0.00019878,2]
[374434895,1753300240617,-460.0,0.00019878,2]
[374434897,1753300240626,-1189.56,0.00019879,2]
[374434899,1753300240635,-548.68092052,0.0001989,2]
[374434901,1753300240644,-184.74055918,0.00019893,2]
[374434903,1753300240654,-285.83434976,0.00019966,2]
[374434905,1753300240663,-460.0,0.00019985,2]
[374434907,1753300240672,-460.0,0.00019985,2]
[374434908,1753300240682,-730.52,0.00019985,2]
[374434910,1753300240691,-460.0,0.00019985,2]
[374434912,1753300240700,-519.25,0.00019985,2]
[374434914,1753300240709,-509.69,0.00019985,2]
[374434916,1753300240718,-438.41695309,0.0002005,2]
[374434918,1753300240728,-460.0,0.0002005,2]
[374434920,1753300240737,-677.89,0.0002005,2]
[374434922,1753300240746,-500.0,0.000201,2]
[374434924,1753300240755,-374.42831023,0.000201,2]
[374434926,1753300240766,-460.0,0.00020136,2]
[374434928,1753300240775,-674.47,0.00020136,2]
[374434930,1753300240785,-539.13,0.00020136,2]
[374434932,1753300240794,-554.92,0.00020136,2]
[374434934,1753300240803,-460.0,0.00020136,2]
[374434936,1753300240812,-460.0,0.00020136,2]
[374434938,1753300240821,-460.0,0.00020136,2]
[374434940,1753300240831,-460.0,0.00020136,2]
[374434942,1753300240840,-460.0,0.00020136,2]
[374434944,1753300240849,-696.96,0.00020137,3]
[374434946,1753300240859,-500.0,0.00020145,2]
[374434948,1753300240868,-500.0,0.00020145,2]
[374434950,1753300240877,-500.0,0.00020145,2]
[374434952,1753300240887,-460.0,0.00020147,2]
[374434954,1753300240896,-460.0,0.00020147,2]
[374434956,1753300240907,-460.0,0.00020147,2]
[374434958,1753300240916,-460.0,0.00020147,2]
[374434960,1753300240925,-460.0,0.00020147,2]
[374434962,1753300240936,-460.0,0.00020147,2]
[374434964,1753300240945,-460.0,0.00020147,2]
[374434966,1753300240954,-460.0,0.00020147,2]
[374434968,1753300240963,-370.96,0.00020147,2]
[374434970,1753300240974,-460.0,0.00020147,2]
[374434972,1753300240983,-460.0,0.00020149,2]
[374434974,1753300240993,-948.6,0.00020149,2]
[374434976,1753300241002,-757.48,0.00020149,2]
[374434978,1753300241012,-460.0,0.00020149,2]
[374434980,1753300241021,-460.0,0.00020149,2]
[374434981,1753300241030,-460.0,0.0002015,2]
[374434983,1753300241039,-530.78,0.0002015,2]
[374434985,1753300241048,-460.0,0.0002015,2]
[374434987,1753300241059,-460.0,0.0002015,2]
[374434989,1753300241068,-460.0,0.00020151,2]
[374434991,1753300241077,-460.0,0.00020151,2]
[374434993,1753300241086,-460.0,0.00020151,2]
[374434995,1753300241096,-400.61142701,0.00020152,2]
[374434997,1753300241105,-460.0,0.00020152,2]
[374434999,1753300241114,-460.0,0.00020152,2]
[374435001,1753300241129,-460.0,0.00020152,2]
[374435003,1753300241138,-460.0,0.00020152,2]
[374435005,1753300241148,-460.0,0.00020152,2]
[374435007,1753300241157,-460.0,0.00020152,2]
[374435009,1753300241167,-1189.56,0.00020153,2]
[374435011,1753300241177,-2640.03188684,0.00020171,2]
[374435013,1753300241186,-270.073201,0.00020187,2]
[374435015,1753300241195,-250.0,0.00020231,2]
[374435017,1753300241203,-460.0,0.00020259,2]
[374435019,1753300241212,-460.0,0.00020259,2]
[374435020,1753300241220,-730.52,0.00020259,2]
[374435022,1753300241230,-460.0,0.00020259,2]
[374435024,1753300241238,-509.69,0.00020259,2]
[374435026,1753300241246,-460.0,0.0002027,2]
[374435028,1753300241255,-677.89,0.00020324,2]
[374435030,1753300241266,-460.0,0.0002041,2]
[374435032,1753300241276,-674.47,0.0002041,2]
[374435034,1753300241286,-554.92,0.0002041,2]
[374435036,1753300241297,-460.0,0.0002041,2]
[374435038,1753300241307,-460.0,0.0002041,2]
[374435040,1753300241316,-460.0,0.0002041,2]
[374435042,1753300241326,-460.0,0.0002041,2]
[374435044,1753300241335,-580.0,0.00020421,2]
[374435046,1753300241344,-460.0,0.00020421,2]
[374435048,1753300241353,-460.0,0.00020421,2]
[374435050,1753300241363,-460.0,0.00020421,2]
[374435052,1753300241372,-460.0,0.00020421,2]
[374435054,1753300241381,-460.0,0.00020421,2]
[374435056,1753300241389,-460.0,0.00020421,2]
[374435058,1753300241399,-948.6,0.00020423,2]
[374435060,1753300241409,-757.48,0.00020423,2]
[374435062,1753300241418,-460.0,0.00020423,2]
[374435064,1753300241427,-460.0,0.00020423,2]
[374435066,1753300241436,-460.0,0.00020424,2]
[374435068,1753300241445,-530.78,0.00020424,2]
[374435070,1753300241455,-460.0,0.00020424,2]
[374435071,1753300241464,-460.0,0.00020424,2]
[374435074,1753300241473,-460.0,0.00020425,2]
[374435075,1753300241483,-460.0,0.00020426,2]
[374435077,1753300241492,-450.48047649,0.00020426,2]
[374435079,1753300241500,-1189.56,0.00020427,2]
[374435081,1753300241509,-274.01531446,0.00020454,2]
[374435083,1753300241518,-197.14,0.00020521,2]
[374435085,1753300241527,-460.0,0.00020533,2]
[374435087,1753300241536,-460.0,0.00020533,2]
[374435089,1753300241545,-730.52,0.00020533,2]
[374435091,1753300241554,-509.69,0.00020533,2]
[374435093,1753300241563,-312.34497835,0.00020592,2]
[374435095,1753300241572,-677.89,0.00020598,2]
[374435097,1753300241582,-122.99801375,0.00020684,2]
[374435100,1753300241601,-337.00198625,0.00020684,2]
[374435102,1753300241610,-659.7216218,0.00020684,2]
[374435107,1753300241641,-151.0,0.00019838,2]
[374435109,1753300241651,-151.0,0.00019838,2]
[374435111,1753300241660,-14.7483782,0.00020684,2]
[374435113,1753300241669,-554.92,0.00020684,2]
[374435114,1753300241679,-460.0,0.00020684,2]
[374435117,1753300241689,-154.70710293,0.00020684,2]
[374435118,1753300241698,-460.0,0.00020684,2]
[374435120,1753300241707,-1000.0,0.00020693,2]
[374435122,1753300241716,-53.62451887,0.00020695,2]
[374435126,1753300241741,-151.0,0.00019838,2]
[374435128,1753300241750,-406.37548113,0.00020695,2]
[374435130,1753300241759,-460.0,0.00020695,2]
[374435132,1753300241768,-460.0,0.00020695,2]
[374435134,1753300241777,-948.6,0.00020697,2]
[374435136,1753300241787,-757.48,0.00020697,2]
[374435138,1753300241797,-460.0,0.00020697,2]
[374435140,1753300241806,-530.78,0.00020698,2]
[374435142,1753300241815,-460.0,0.00020698,2]
[374435144,1753300241825,-460.0,0.00020698,2]
[374435146,1753300241834,-534.1817611,0.000207,2]
[374435148,1753300241843,-1189.56,0.00020701,2]
[374435150,1753300241853,-568.379,0.00020732,2]
[374435152,1753300241862,-460.0,0.00020807,2]
[374435154,1753300241872,-460.0,0.00020807,2]
[374435156,1753300241881,-730.52,0.00020807,2]
[374435158,1753300241891,-509.69,0.00020807,2]
[374435160,1753300241902,-526.15909479,0.00020817,2]
[374435162,1753300241911,-160.0,0.00020817,2]
[374435164,1753300241920,-160.0,0.00020817,2]
[374435166,1753300241929,-12622.36869388,0.00020817,2]
[374435168,1753300241940,-160.0,0.00020817,2]
[374435170,1753300241949,-160.0,0.00020817,2]
[374435172,1753300241959,-160.0,0.00020817,2]
[374435174,1753300241968,-215.84326551,0.00020817,2]
[374435176,1753300241977,-160.0,0.00020817,2]
[374435178,1753300241988,-231.11583447,0.00020817,2]
[374435180,1753300241997,-160.0,0.00020817,2]
[374435182,1753300242007,-160.0,0.00020817,2]
[374435184,1753300242016,-840.06856235,0.00020817,2]
[374435186,1753300242025,-476.696448,0.00020817,2]
[374435188,1753300242035,-214.67886746,0.00020817,2]
[374435190,1753300242044,-677.89,0.00020872,2]
[374435192,1753300242054,-460.0,0.00020958,2]
[374435194,1753300242063,-674.47,0.00020958,2]
[374435196,1753300242072,-554.92,0.00020958,2]
[374435198,1753300242081,-460.0,0.00020958,2]
[374435200,1753300242090,-460.0,0.00020958,2]
[374435202,1753300242100,-460.0,0.00020969,2]
[374435204,1753300242109,-948.6,0.00020971,2]
[374435206,1753300242118,-757.48,0.00020971,2]
[374435208,1753300242132,-460.0,0.00020971,2]
[374435210,1753300242142,-530.78,0.00020972,2]
[374435212,1753300242152,-460.0,0.00020972,2]
[374435214,1753300242163,-1189.56,0.00020975,2]
[374435229,1753300242293,-160.0,0.00021043,2]
[374435231,1753300242303,-460.0,0.00021081,2]
[374435233,1753300242313,-460.0,0.00021081,2]
[374435235,1753300242323,-730.52,0.00021081,2]
[374435237,1753300242336,-509.69,0.00021081,2]
[374435240,1753300242346,-677.89,0.00021146,2]
[374435242,1753300242356,-500.0,0.00021164,2]
[374435244,1753300242368,-292.305415,0.00021178,2]
[374435247,1753300242388,-292.305415,0.00021178,2]
[374435249,1753300242408,-151.0,0.00021178,2]
[374435251,1753300242427,-223.0315306,0.00021207,2]
[374435252,1753300242440,-674.47,0.00021232,2]
[374435254,1753300242450,-554.92,0.00021232,2]
[374435256,1753300242459,-460.0,0.00021232,2]
[374435258,1753300242468,-460.0,0.00021232,2]
[374435260,1753300242478,-500.0,0.00021241,2]
[374435262,1753300242487,-422.74,0.00021243,2]
[374435264,1753300242496,-948.6,0.00021245,2]
[374435266,1753300242506,-757.48,0.00021245,2]
[374435268,1753300242515,-460.0,0.00021245,2]
[374435270,1753300242524,-530.78,0.00021246,2]
[374435272,1753300242533,-521.65469546,0.00021246,2]
[374435274,1753300242543,-1189.56,0.00021249,2]
[374435276,1753300242552,-460.0,0.00021355,2]
[374435278,1753300242562,-460.0,0.00021355,2]
[374435280,1753300242571,-730.52,0.00021355,2]
[374435282,1753300242580,-509.69,0.00021355,2]
[374435284,1753300242590,-677.89,0.0002142,2]
[374435286,1753300242611,-674.47,0.00021506,2]
[374435288,1753300242622,-554.92,0.00021506,2]
[374435290,1753300242631,-948.6,0.00021519,2]
[374435292,1753300242641,-757.48,0.00021519,2]
[374435294,1753300242650,-460.0,0.00021519,2]
[374435296,1753300242660,-530.78,0.0002152,2]
[374435298,1753300242669,-1189.56,0.00021523,2]
[374435300,1753300242680,-420.0,0.00021538,2]
[374435302,1753300242689,-675.9,0.00021579,5]
[374435304,1753300242698,-260.0,0.00021591,2]
[374435306,1753300242707,-460.0,0.00021629,2]
[374435308,1753300242717,-460.0,0.00021629,2]
[374435310,1753300242726,-730.52,0.00021629,2]
[374435312,1753300242736,-509.69,0.00021629,2]
[374435314,1753300242746,-677.89,0.00021694,2]
[374435316,1753300242756,-674.47,0.0002178,2]
[374435318,1753300242765,-554.92,0.0002178,2]
[374435320,1753300242775,-948.6,0.00021793,2]
[374435322,1753300242785,-757.48,0.00021793,2]
[374435324,1753300242795,-460.0,0.00021793,2]
[374435326,1753300242805,-530.78,0.00021794,2]
[374435328,1753300242815,-1189.56,0.00021797,2]
[374435330,1753300242825,-151.0,0.000218,3]
[374435332,1753300242834,-675.9,0.0002189,5]
[374435334,1753300242843,-208.944323,0.000219,2]
[374435336,1753300242854,-151.0,0.000219,2]
[374435338,1753300242863,-151.0,0.000219,2]
[374435340,1753300242872,-151.0,0.000219,2]
[374435342,1753300242881,-758.424662,0.000219,2]
[374435344,1753300242890,-460.0,0.00021903,2]
[374435346,1753300242900,-428.96728884,0.00021903,2]
[374435347,1753300242910,-730.52,0.00021903,2]
[374435349,1753300242919,-509.69,0.00021903,2]
[374435351,1753300242931,-677.89,0.00021968,2]
[374435354,1753300242945,-2280.9,0.00022,7]
[374435356,1753300242955,-3773.44,0.00022,7]
[374435357,1753300242964,-16822.22,0.00022,7]
[374435360,1753300242974,-152.0,0.00022,2]
[374435361,1753300242985,-674.47,0.00022054,2]
[374435363,1753300242995,-554.92,0.00022054,2]
[374435366,1753300243006,-948.6,0.00022067,2]
[374435368,1753300243016,-757.48,0.00022067,2]
[374435370,1753300243026,-460.0,0.00022067,2]
[374435372,1753300243035,-530.78,0.00022068,2]
[374435374,1753300243048,-1189.56,0.00022071,2]
[374435375,1753300243057,-197.14,0.00022086,2]
[374435377,1753300243067,-151.0,0.000221,6]
[374435379,1753300243077,-360.0,0.00022139,2]
[374435381,1753300243087,-153.0,0.00022152,2]
[374435383,1753300243097,-153.0,0.00022152,2]
[374435385,1753300243107,-153.0,0.00022152,2]
[374435387,1753300243116,-292.305415,0.00022176,7]
[374435390,1753300243129,-292.305415,0.00022176,7]
[374435393,1753300243139,-151.581617,0.00022176,7]
[374435394,1753300243149,-460.0,0.00022177,2]
[374435396,1753300243159,-730.52,0.00022177,2]
[374435398,1753300243169,-509.69,0.00022177,2]
[374435401,1753300243184,-151.0,0.00022188,7]
[374435402,1753300243193,-151.0,0.00022188,7]
[374435404,1753300243203,-151.0,0.00022191,7]
[374435407,1753300243214,-151.0,0.00022191,7]
[374435408,1753300243223,-222.339942,0.00022191,2]
[374435410,1753300243233,-152.0,0.00022192,7]
[374435412,1753300243243,-675.9,0.00022201,5]
[374435415,1753300243253,-170.36,0.00022224,2]
[374435417,1753300243263,-2126.41984904,0.00022241,2]
[374435419,1753300243272,-677.89,0.00022242,2]
[374435421,1753300243282,-151.0,0.00022247,7]
[374435423,1753300243291,-285.623926,0.00022247,7]
[374435425,1753300243301,-674.47,0.00022328,2]
[374435426,1753300243310,-554.92,0.00022328,2]
[374435428,1753300243319,-948.6,0.00022341,2]
[374435431,1753300243330,-757.48,0.00022341,2]
[374435433,1753300243339,-460.0,0.00022341,2]
[374435435,1753300243348,-530.78,0.00022342,2]
[374435437,1753300243357,-1189.56,0.00022345,2]
[374435439,1753300243367,-151.0,0.00022346,7]
[374435441,1753300243376,-151.0,0.000224,10]
[374435443,1753300243385,-151.0,0.000224,7]
[374435445,1753300243395,-758.42466198,0.000224,2]
[374435447,1753300243404,-296.161538,0.00022405,8]
[374435449,1753300243414,-460.0,0.00022451,2]
[374435451,1753300243423,-730.52,0.00022451,2]
[374435453,1753300243436,-509.69,0.00022451,2]
[374435455,1753300243446,-2053.62,0.00022465,2]
[374435456,1753300243455,-151.0,0.00022466,7]
[374435458,1753300243464,-151.0,0.00022466,7]
[374435460,1753300243473,-151.0,0.00022466,7]
[374435462,1753300243482,-151.0,0.0002247,7]
[374435464,1753300243492,-228.61459,0.0002247,7]
[374435466,1753300243502,-228.61459,0.0002247,7]
[374435468,1753300243511,-151.0,0.0002247,2]
[374435470,1753300243520,-151.0,0.0002247,2]
[374435472,1753300243529,-500.0,0.00022473,2]
[374435474,1753300243539,-500.0,0.00022473,2]
[374435476,1753300243548,-500.0,0.00022473,2]
[374435478,1753300243558,-500.0,0.00022473,2]
[374435480,1753300243567,-500.0,0.00022473,2]
[374435482,1753300243576,-500.0,0.00022473,2]
[374435484,1753300243586,-151.0,0.0002249,7]
[374435486,1753300243595,-151.0,0.0002249,7]
[374435488,1753300243605,-151.0,0.0002249,7]
[374435490,1753300243615,-155.062157,0.0002249,7]
[374435492,1753300243624,-292.305415,0.0002249,7]
[374435494,1753300243633,-292.305415,0.0002249,7]
[374435496,1753300243643,-200.0,0.00022499,2]
[374435499,1753300243652,-160.31443999,0.00022499,2]
[374435502,1753300243661,-200.0,0.00022499,2]
[374435504,1753300243671,-4203.67604473,0.000225,2]
[374435506,1753300243682,-151.0,0.000225,7]
[374435508,1753300243691,-151.0,0.000225,7]
[374435510,1753300243700,-151.0,0.000225,7]
[374435512,1753300243709,-151.0,0.000225,7]
[374435514,1753300243719,-151.0,0.000225,7]
[374435516,1753300243728,-151.0,0.000225,7]
[374435518,1753300243737,-292.305415,0.000225,7]
[374435520,1753300243747,-292.305415,0.000225,7]
[374435522,1753300243756,-228.61459,0.000225,7]
[374435524,1753300243766,-228.61459,0.000225,7]
[374435526,1753300243775,-151.0,0.000225,2]
[374435528,1753300243784,-300.094228,0.000225,2]
[374435530,1753300243794,-231346.42788967,0.000225,2]
[374435537,1753300243857,-151.0,0.00019838,2]
[374435539,1753300243867,-151.0,0.00019838,2]
[374435541,1753300243876,-151.0,0.00019838,2]
[374435543,1753300243885,-20526.65556064,0.000225,2]
[374435545,1753300243896,-1544.21028227,0.000225,2]
[374435742,1753300246129,-155.0,0.00020695,2]
[374435744,1753300246138,-456.2830815,0.000225,2]
[374435746,1753300246150,-24422.9376096,0.000225,2]
[374435748,1753300246161,-582.58705545,0.000225,2]
[374437965,1753300280762,150.0,0.00020399,30]
[374437966,1753300281187,150.0,0.0002137,30]
[374437967,1753300281585,207.75,0.00022342,30]
[374437974,1753300365996,150.0,0.00020653,30]
[374437975,1753300366464,150.0,0.00021637,30]
[374437976,1753300366855,199.44,0.0002262,30]
[374438007,1753300445775,150.0,0.00020429,30]
[374438008,1753300446175,150.0,0.00021402,30]
[374438009,1753300446566,191.27,0.00022374,30]
[374438011,1753300525864,150.0,0.00020637,30]
[374438012,1753300526269,150.0,0.00021619,30]
[374438013,1753300526675,183.23,0.00022602,30]
[374438050,1753300610000,150.0,0.00020802,30]
[374438051,1753300610649,150.0,0.00021792,30]
[374438052,1753300611301,175.32,0.00022783,30]
[374438056,1753300691160,150.0,0.00020662,30]
[374438057,1753300691641,150.0,0.00021646,30]
[374438058,1753300692541,167.54,0.0002263,30]
[374438060,1753300776473,150.0,0.00020664,30]